{"text_format":"1","workbook":"xlsx","n_sheets":1,"sheets":["Kalkulator PSFURdP"],"not_rendered":{"charts":0,"images":4,"macros":1,"external_links":0,"defined_names":0,"comments":1,"pivot_tables":0},"unopened":[],"bounds":{"document_bytes":16777216,"sheet_cells":100000,"rows_first":2000,"rows_last":500,"rows_between":2000,"halvings":0,"cell_chars":16384,"cell_head_chars":4096},"cells_cut":0,"cells_raw":0,"read":"whole","date_system":"1900"}

{"sheet":"Kalkulator PSFURdP","index":0,"n_rows":64,"n_cols":10,"rows_kept":64,"cut":false,"hidden":false,"merged":[[24,1,24,2],[25,1,25,2],[26,1,27,2],[11,4,11,5],[10,4,10,5],[9,4,9,5],[8,4,8,5],[7,4,7,5],[6,4,6,5],[2,1,2,4]]}
[]
[]
[null,"Kalkulator budżetu projektu Warmińsko – Mazurskiego Systemu Finansowania Usług Rozwojowych*"]
[]
[]
[null,"Założenia"]
[null,"a)","Liczba usług rozwojowych (50% dofinansowania EFS) - pomoc de minimis",0]
[null,"b)","Liczba usług rozwojowych (80% dofinansowania EFS) - pomoc de minimis",0]
[null,"c)","Liczba szkoleń/usług doradczych (50% dofinansowania EFS) - pomoc publiczna",0]
[null,"d)","Liczba szkoleń (60% dofinansowania EFS) - pomoc publiczna",0]
[null,"e)","Liczba szkoleń (70% dofinansowania EFS) - pomoc publiczna",0]
[null,"Razem",null,{"$f":"SUM(D7:D11)","v":0},"-"]
[]
[null,"a)","Max wartość dofinansowania 1 usługi rozwojowej (50% EFS):",0]
[null,"a)","Min wartość wkładu własnego 1 usługi rozwojowej (50%):",{"$f":"ROUND((D14*50)/50,2)","v":0}]
[null,"b)","Max wartość dofinansowania 1 usługi rozwojowej (80% EFS):",0]
[null,"b)","Min wartość wkładu własnego 1 usługi rozwojowej (20%):",{"$f":"ROUND((D16*20)/80,2)","v":0}]
[null,"c)","Max wartość dofinansowania 1 szkolenia/usługi doradczej (50% EFS):",0]
[null,"c)","Min wartość wkładu własnego 1 szkolenia/usługi doradczej (50%):",{"$f":"ROUND((D18*50)/50,2)","v":0}]
[null,"d)","Max wartość dofinansowania 1 szkolenia (60% EFS):",0]
[null,"d)","Min wartość wkładu własnego 1 szkolenia (40%):",{"$f":"ROUND((D20*40)/60,2)","v":0}]
[null,"e)","Max wartość dofinansowania 1 szkolenia (70% EFS):",0]
[null,"e)","Min wartość wkładu własnego 1 szkolenia (30%):",{"$f":"ROUND((D22*30)/70,2)","v":0}]
[]
[null,"Dofinansowanie EFS do projektu",null,"max 85%"]
[null,"Wkład własny do projektu",null,"min 15%"]
[null,"Koszty pośrednie (wg. wartości projektu)",null,0.25,0.2,0.15,0.1]
[null,null,null,"0-1 mln zł","1-2 mln zł","2-5 mln zł","pow. 5 mln zł"]
[]
[null,"Budżet projektu"]
[null,"Lp.","Kategoria wydatku","Jedn. miary","Liczba","Cena jedn.","Wartość","%"]
[null,"Z1","Działania merytoryczne poza RUR, np. Identyfikacja potrzeb grupy docelowej (100% EFS)","wyszczególnienie w LSI MAKS2",1,0,{"$f":"E32*F32","v":0},"-",null,{"$f":"ROUND(-((G36+G34+G38+G40+G42)+G45-(85%*(G36+G34+G38+G40+G42)+85%*G45+85%*(G37+G35+G39+G41+G43)))/15%,2)","v":0}]
[null,"Z2","Działania merytoryczne w RUR","-","-","-",{"$f":"SUM(G34:G43)","v":0},"-"]
[null,"a)","RUR (50% EFS) - pomoc de minimis","usługa rozwojowa",{"$f":"D7","v":0},{"$f":"D14","v":0},{"$f":"E34*F34","v":0},{"$f":"IF(G34>0,ROUND(G34/(G34+G35)*100,4),\"-\")","v":"-"}]
[null,"a)","RUR (50% Wkład własny)","usługa rozwojowa",{"$f":"D7","v":0},0,{"$f":"E35*F35","v":0},{"$f":"IF(G35>0,ROUND(G35/(G34+G35)*100,4),\"-\")","v":"-"}]
[null,"b)","RUR (80% EFS) - pomoc de minimis","usługa rozwojowa",{"$f":"D8","v":0},0,0,{"$f":"IF(G36>0,ROUND(G36/(G36+G37)*100,4),\"-\")","v":"-"}]
[null,"b)","RUR (20% Wkład własny)","usługa rozwojowa",{"$f":"D8","v":0},0,0,{"$f":"IF(G37>0,ROUND(G37/(G36+G37)*100,4),\"-\")","v":"-"}]
[null,"c)","RUR (50% EFS) - pomoc publiczna","szkolenie/usł. dor.",{"$f":"D9","v":0},0,0,{"$f":"IF(G38>0,ROUND(G38/(G38+G39)*100,4),\"-\")","v":"-"}]
[null,"c)","RUR (50% Wkład własny)","szkolenie/usł. dor.",{"$f":"D9","v":0},0,0,{"$f":"IF(G39>0,ROUND(G39/(G38+G39)*100,4),\"-\")","v":"-"}]
[null,"d)","RUR (60% EFS) - pomoc publiczna","szkolenie",{"$f":"D10","v":0},0,0,{"$f":"IF(G40>0,ROUND(G40/(G40+G41)*100,4),\"-\")","v":"-"}]
[null,"d)","RUR (40% Wkład własny)","szkolenie",{"$f":"D10","v":0},0,0,{"$f":"IF(G41>0,ROUND(G41/(G40+G41)*100,4),\"-\")","v":"-"}]
[null,"e)","RUR (70% EFS) - pomoc publiczna","szkolenie",{"$f":"D11","v":0},0,0,{"$f":"IF(G42>0,ROUND(G42/(G42+G43)*100,4),\"-\")","v":"-"}]
[null,"e)","RUR (30% Wkład własny)","szkolenie",{"$f":"D11","v":0},0,0,{"$f":"IF(G43>0,ROUND(G43/(G42+G43)*100,4),\"-\")","v":"-"}]
[null,"-","Razem koszty bezpośrednie","-","-","-",{"$f":"SUM(G32:G33)","v":0},"-",null,"Wybierz"]
[null,"-","Koszty pośrednie (100% EFS)","-","-","Wybierz",{"$f":"IF(F45=\"Wybierz\",0,ROUND(F45*G44,2))","v":0},"-",null,"25%"]
[null,"-","Razem koszty (ogółem)","-","-","-",{"$f":"SUM(G44:G45)","v":0},"-",null,"20%"]
[null,null,null,null,null,null,null,null,null,"15%"]
[null,"-","Suma EFS","-","-","-",{"$f":"G32+G34+G36+G38+G40+G42+G45","v":0},{"$f":"IF(G48>0,ROUND(G48/(G48+G49)*100,4),\"-\")","v":"-"},null,"10%"]
[null,"-","Suma wkład własny","-","-","-",{"$f":"G35+G37+G39+G41+G43","v":0},{"$f":"IF(G49>0,ROUND(G49/(G48+G49)*100,4),\"-\")","v":"-"}]
[]
[]
[]
[]
[null,"* - Narzędzie pomocnicze o charakterze fakultatywnym, nie zwalnia Wnioskodawcy z konieczności zachowania poprawności obliczeń, nie zastępuje systemu informatycznego LSI MAKS2."]
[null,null,null,null,"suma EFS = 85%razem koszty ogółem"]
[null,null,null,null,"suma wkład własny=15% razem koszty ogółem"]
[]
[null,null,null,null,"85%=suma EFS/razem koszty ogółem"]
[null,null,null,null,"85%=(identyfikacja 100%efs +rur 80%efs+koszty pośrednie100%efs)/(identyfikacja 100%efs +rur 80%efs+koszty pośrednie100%efs+rur20%wkład własny)"]
[null,null,null,null,"85%*(identyfikacja 100%efs +rur 80%efs+koszty pośrednie100%efs+rur20%wkład własny)=(identyfikacja 100%efs +rur 80%efs+koszty pośrednie100%efs)"]
[null,null,null,null,"85%*(identyfikacja 100%efs +rur 80%efs+koszty pośrednie100%efs+rur20%wkład własny)-identyfikacja 100%efs=(rur 80%efs+koszty pośrednie100%efs)"]
[null,null,null,null,"85%identyfikacja 100%efs +85%rur 80%efs+85%koszty pośrednie100%efs+85%rur20%wkład własny-identyfikacja 100%efs=rur 80%efs+koszty pośrednie100%efs"]
[null,null,null,null,"85%identyfikacja 100%efs -identyfikacja 100%efs=rur 80%efs+koszty pośrednie100%efs-(85%rur 80%efs+85%koszty pośrednie100%efs+85%rur20%wkład własny)"]
[null,null,null,null,"identyfikacja 100%efs=-[rur 80%efs+koszty pośrednie100%efs-(85%rur 80%efs+85%koszty pośrednie100%efs+85%rur20%wkład własny)]/15%"]